[Event "*** Titled Tuesday Blitz"]
[Site "Chess.com"]
[Date "2020.04.14"]
[Round "8"]
[White "2008king"]
[Black "sergeikim"]
[Result "0-1"]
[WhiteElo "2046"]
[BlackElo "2371"]
[TimeControl "180+1"]
[EndTime "11:29:04 PDT"]
[Termination "sergeikim won by checkmate"]

1. e4 {[%clk 0:03:00.9]} 1... e5 {[%clk 0:02:59.6]} 2. Nf3 {[%clk 0:03:00.4]}
2... Nc6 {[%clk 0:02:59.6]} 3. d4 {[%clk 0:02:59.6]} 3... exd4 {[%clk
0:02:58.9]} 4. Nxd4 {[%clk 0:03:00.5]} 4... Bc5 {[%clk 0:02:58.6]} 5. Nb3 {[%clk
0:02:59.7]} 5... Bb6 {[%clk 0:02:57.9]} 6. Nc3 {[%clk 0:02:59.3]} 6... Nf6
{[%clk 0:02:57.1]} 7. Qe2 {[%clk 0:02:53.6]} 7... d6 {[%clk 0:02:56.2]} 8. Bg5
{[%clk 0:02:53]} 8... h6 {[%clk 0:02:55.1]} 9. Bh4 {[%clk 0:02:51.9]} 9... g5
{[%clk 0:02:53.8]} 10. Bg3 {[%clk 0:02:52]} 10... Be6 {[%clk 0:02:53.6]} 11.
O-O-O {[%clk 0:02:51.9]} 11... Qe7 {[%clk 0:02:53.5]} 12. Nd5 {[%clk 0:02:50.1]}
12... Bxd5 {[%clk 0:02:50.6]} 13. exd5 {[%clk 0:02:51]} 13... Ne5 {[%clk
0:02:49.9]} 14. h4 {[%clk 0:02:44.7]} 14... O-O-O {[%clk 0:02:45.7]} 15. f3
{[%clk 0:02:34.5]} 15... Nh5 {[%clk 0:02:42.3]} 16. Bh2 {[%clk 0:02:25.1]} 16...
Kb8 {[%clk 0:02:21.1]} 17. g4 {[%clk 0:02:15.6]} 17... Nf4 {[%clk 0:02:15.2]}
18. Bxf4 {[%clk 0:02:15.3]} 18... gxf4 {[%clk 0:02:14.5]} 19. Nd4 {[%clk
0:02:15.8]} 19... Rhe8 {[%clk 0:01:58.6]} 20. Nf5 {[%clk 0:02:12.8]} 20... Qf6
{[%clk 0:01:58.3]} 21. Qg2 {[%clk 0:02:05.4]} 21... h5 {[%clk 0:01:53.4]} 22.
Bb5 {[%clk 0:02:03.9]} 22... Rg8 {[%clk 0:01:50.8]} 23. Nd4 {[%clk 0:01:38.5]}
23... hxg4 {[%clk 0:01:43.9]} 24. fxg4 {[%clk 0:01:32.4]} 24... f3 {[%clk
0:01:38.7]} 25. Qd2 {[%clk 0:01:30.1]} 25... Rxg4 {[%clk 0:01:35.3]} 26. c3
{[%clk 0:01:22.5]} 26... Rxh4 {[%clk 0:01:28.4]} 27. Rxh4 {[%clk 0:01:18.9]}
27... Qxh4 {[%clk 0:01:27]} 28. Nf5 {[%clk 0:01:19]} 28... Qf6 {[%clk
0:01:22.2]} 29. Ng3 {[%clk 0:01:14.7]} 29... a6 {[%clk 0:01:16.2]} 30. Bf1
{[%clk 0:01:11.7]} 30... Ng4 {[%clk 0:01:06.9]} 31. Kb1 {[%clk 0:01:09.8]} 31...
Re8 {[%clk 0:00:59]} 32. Bd3 {[%clk 0:01:07.3]} 32... Nf2 {[%clk 0:00:52.1]} 33.
Rf1 {[%clk 0:01:03.1]} 33... Nxd3 {[%clk 0:00:47.9]} 34. Qxd3 {[%clk 0:01:04]}
34... f2 {[%clk 0:00:47.7]} 35. Ne4 {[%clk 0:00:57.2]} 35... Qf4 {[%clk
0:00:46.8]} 36. Nd2 {[%clk 0:00:54.9]} 36... Re1+ {[%clk 0:00:44.5]} 37. Kc2
{[%clk 0:00:53.8]} 37... f5 {[%clk 0:00:40]} 38. Qh3 {[%clk 0:00:44.3]} 38...
Be3 {[%clk 0:00:31.8]} 39. Nb3 {[%clk 0:00:31.9]} 39... Qe4# {[%clk 0:00:30.7]}
0-1

[Event "*** Titled Tuesday Blitz"]
[Site "Chess.com"]
[Date "2020.04.14"]
[Round "8"]
[White "SketchyMoves"]
[Black "tvjosue"]
[Result "0-1"]
[WhiteElo "2636"]
[BlackElo "2521"]
[TimeControl "180+1"]
[EndTime "11:29:07 PDT"]
[Termination "tvjosue won by resignation"]

1. e4 {[%clk 0:02:48.7]} 1... c5 {[%clk 0:02:59.4]} 2. Nc3 {[%clk 0:02:47.9]}
2... a6 {[%clk 0:02:56.1]} 3. g3 {[%clk 0:02:47.6]} 3... b5 {[%clk 0:02:55.7]}
4. Bg2 {[%clk 0:02:47.9]} 4... Bb7 {[%clk 0:02:56.6]} 5. f4 {[%clk 0:02:48.3]}
5... e6 {[%clk 0:02:57]} 6. d3 {[%clk 0:02:48.5]} 6... Nc6 {[%clk 0:02:57.9]} 7.
Nf3 {[%clk 0:02:48.8]} 7... Nf6 {[%clk 0:02:53.7]} 8. O-O {[%clk 0:02:46.8]}
8... b4 {[%clk 0:02:52.9]} 9. Ne2 {[%clk 0:02:46.4]} 9... d5 {[%clk 0:02:53.1]}
10. e5 {[%clk 0:02:45.8]} 10... Nd7 {[%clk 0:02:53.6]} 11. c3 {[%clk 0:02:44.3]}
11... Be7 {[%clk 0:02:51.8]} 12. Be3 {[%clk 0:02:39.7]} 12... a5 {[%clk
0:02:51.2]} 13. h3 {[%clk 0:02:37.2]} 13... a4 {[%clk 0:02:50]} 14. a3 {[%clk
0:02:34.6]} 14... bxc3 {[%clk 0:02:48.3]} 15. bxc3 {[%clk 0:02:34.2]} 15... O-O
{[%clk 0:02:47.5]} 16. g4 {[%clk 0:02:30.2]} 16... Na5 {[%clk 0:02:47.5]} 17. d4
{[%clk 0:02:27]} 17... Nb3 {[%clk 0:02:38.5]} 18. Ra2 {[%clk 0:02:24.9]} 18...
Ba6 {[%clk 0:02:38.9]} 19. f5 {[%clk 0:02:20.3]} 19... Bc4 {[%clk 0:02:36.3]}
20. Rf2 {[%clk 0:02:09.1]} 20... Rc8 {[%clk 0:02:20.6]} 21. Nf4 {[%clk
0:02:06.3]} 21... cxd4 {[%clk 0:02:09]} 22. cxd4 {[%clk 0:02:05.3]} 22... Qb6
{[%clk 0:02:04]} 23. Kh2 {[%clk 0:02:00.4]} 23... Rfe8 {[%clk 0:01:52.4]} 24.
Nh5 {[%clk 0:01:56.8]} 24... Bf8 {[%clk 0:01:47.2]} 25. Ng5 {[%clk 0:01:46]}
25... Nxe5 {[%clk 0:01:40.5]} 26. fxe6 {[%clk 0:01:11.2]} 26... fxe6 {[%clk
0:01:38]} 27. Bf1 {[%clk 0:00:42.2]} 27... Ng6 {[%clk 0:01:08.2]} 28. Qb1 {[%clk
0:00:31.4]} 28... e5 {[%clk 0:00:56.6]} 29. Rf5 {[%clk 0:00:13.7]} 29... exd4
{[%clk 0:00:49.5]} 30. Bf4 {[%clk 0:00:14.1]} 30... Bxf1 {[%clk 0:00:39.6]} 31.
Qxf1 {[%clk 0:00:13.5]} 31... Nxf4 {[%clk 0:00:37.6]} 32. Qxf4 {[%clk
0:00:09.4]} 32... Bd6 {[%clk 0:00:37.2]} 0-1

[Event "*** Titled Tuesday Blitz"]
[Site "Chess.com"]
[Date "2020.04.14"]
[Round "8"]
[White "Zaven_ChessMood"]
[Black "tigra"]
[Result "1-0"]
[WhiteElo "2926"]
[BlackElo "2848"]
[TimeControl "180+1"]
[EndTime "11:29:09 PDT"]
[Termination "Zaven_ChessMood won by resignation"]

1. e4 {[%clk 0:03:00.9]} 1... c5 {[%clk 0:02:56]} 2. Nc3 {[%clk 0:03:00.7]} 2...
a6 {[%clk 0:02:50.9]} 3. Nf3 {[%clk 0:03:00.5]} 3... d6 {[%clk 0:02:48.6]} 4. d4
{[%clk 0:03:00.7]} 4... cxd4 {[%clk 0:02:48.6]} 5. Nxd4 {[%clk 0:03:01.6]} 5...
Nf6 {[%clk 0:02:49.1]} 6. Be3 {[%clk 0:03:00.8]} 6... Ng4 {[%clk 0:02:48.5]} 7.
Bc1 {[%clk 0:03:00.2]} 7... Nf6 {[%clk 0:02:48.4]} 8. h3 {[%clk 0:02:59.8]} 8...
Nc6 {[%clk 0:02:47.4]} 9. Be3 {[%clk 0:02:58.5]} 9... e6 {[%clk 0:02:46.4]} 10.
g4 {[%clk 0:02:58.1]} 10... Be7 {[%clk 0:02:46.5]} 11. Bg2 {[%clk 0:02:57.6]}
11... Nd7 {[%clk 0:02:38.1]} 12. O-O {[%clk 0:02:56.9]} 12... O-O {[%clk
0:02:32.4]} 13. f4 {[%clk 0:02:56.9]} 13... Nxd4 {[%clk 0:02:32.3]} 14. Qxd4
{[%clk 0:02:55.4]} 14... e5 {[%clk 0:02:32.7]} 15. Qd2 {[%clk 0:02:53.9]} 15...
exf4 {[%clk 0:02:32.8]} 16. Bxf4 {[%clk 0:02:52.1]} 16... Ne5 {[%clk 0:02:33.4]}
17. Nd5 {[%clk 0:02:50.8]} 17... Be6 {[%clk 0:02:31.1]} 18. Nxe7+ {[%clk
0:02:47.2]} 18... Qxe7 {[%clk 0:02:30.5]} 19. b3 {[%clk 0:02:47.8]} 19... Rfd8
{[%clk 0:02:27.2]} 20. Rad1 {[%clk 0:02:48.4]} 20... b5 {[%clk 0:02:25.1]} 21.
c3 {[%clk 0:02:44.9]} 21... Rac8 {[%clk 0:02:23.2]} 22. Be3 {[%clk 0:02:33]}
22... h6 {[%clk 0:02:20]} 23. Bd4 {[%clk 0:02:32]} 23... Qc7 {[%clk 0:02:07.2]}
24. g5 {[%clk 0:02:28.9]} 24... h5 {[%clk 0:01:58.7]} 25. Rf4 {[%clk 0:02:16.4]}
25... Nc6 {[%clk 0:01:40.2]} 26. Rdf1 {[%clk 0:02:13.1]} 26... Nxd4 {[%clk
0:01:14.8]} 27. cxd4 {[%clk 0:02:14]} 27... Qc3 {[%clk 0:01:07.3]} 28. Qf2
{[%clk 0:02:09.9]} 28... Qc2 {[%clk 0:00:28.9]} 29. d5 {[%clk 0:02:06.1]} 29...
Qxf2+ {[%clk 0:00:28.4]} 30. R1xf2 {[%clk 0:02:07]} 30... Rc1+ {[%clk 0:00:28]}
31. Kh2 {[%clk 0:02:06.1]} 31... Bc8 {[%clk 0:00:19.1]} 32. Rxf7 {[%clk
0:02:06.1]} 32... Kh7 {[%clk 0:00:18.8]} 33. Re7 {[%clk 0:02:02.6]} 33... Kg6
{[%clk 0:00:17.6]} 34. h4 {[%clk 0:02:02.1]} 34... Re1 {[%clk 0:00:14.7]} 35.
Rc7 {[%clk 0:01:57.4]} 35... Bd7 {[%clk 0:00:13.6]} 36. Kg3 {[%clk 0:01:51.6]}
36... Re3+ {[%clk 0:00:13.2]} 37. Kh2 {[%clk 0:01:49.5]} 37... b4 {[%clk
0:00:12.3]} 38. Rb7 {[%clk 0:01:46.5]} 38... a5 {[%clk 0:00:12.4]} 39. Ra7
{[%clk 0:01:45.8]} 39... a4 {[%clk 0:00:04.9]} 40. bxa4 {[%clk 0:01:45.6]} 40...
Ra3 {[%clk 0:00:03.2]} 41. a5 {[%clk 0:01:45.8]} 41... b3 {[%clk 0:00:02.3]} 42.
axb3 {[%clk 0:01:44.9]} 42... Rxb3 {[%clk 0:00:03.2]} 43. e5 {[%clk 0:01:45.5]}
43... Bf5 {[%clk 0:00:03]} 44. e6 {[%clk 0:01:43.9]} 44... Rc8 {[%clk
0:00:03.4]} 45. e7 {[%clk 0:01:39.6]} 45... Re3 {[%clk 0:00:02.6]} 46. Rxf5
{[%clk 0:01:33.7]} 46... Kxf5 {[%clk 0:00:03]} 47. Bh3+ {[%clk 0:01:34.2]} 47...
Rxh3+ {[%clk 0:00:03.9]} 48. Kxh3 {[%clk 0:01:35.1]} 48... Ke5 {[%clk
0:00:04.3]} 49. a6 {[%clk 0:01:34]} 49... Kf4 {[%clk 0:00:04.6]} 50. Rc7 {[%clk
0:01:30.5]} 50... Rb8 {[%clk 0:00:03.5]} 51. a7 {[%clk 0:01:27.6]} 1-0

[Event "*** Titled Tuesday Blitz"]
[Site "Chess.com"]
[Date "2020.04.14"]
[Round "8"]
[White "kingofthenil"]
[Black "RojonR"]
[Result "1-0"]
[WhiteElo "2547"]
[BlackElo "2393"]
[TimeControl "180+1"]
[EndTime "11:29:10 PDT"]
[Termination "kingofthenil won by resignation"]

1. e4 {[%clk 0:03:00.9]} 1... c5 {[%clk 0:02:39.5]} 2. d3 {[%clk 0:03:00]} 2...
Nc6 {[%clk 0:02:31.9]} 3. g3 {[%clk 0:03:00.9]} 3... g6 {[%clk 0:02:28.7]} 4.
Bg2 {[%clk 0:03:01.8]} 4... Bg7 {[%clk 0:02:29]} 5. f4 {[%clk 0:03:02.2]} 5...
e6 {[%clk 0:02:29]} 6. Nf3 {[%clk 0:03:03.1]} 6... Nge7 {[%clk 0:02:29.1]} 7.
O-O {[%clk 0:03:04]} 7... O-O {[%clk 0:02:28.2]} 8. c3 {[%clk 0:02:56.4]} 8...
b6 {[%clk 0:02:24.4]} 9. Be3 {[%clk 0:02:41.4]} 9... d5 {[%clk 0:02:23.4]} 10.
e5 {[%clk 0:02:38.5]} 10... d4 {[%clk 0:02:14.9]} 11. cxd4 {[%clk 0:02:36.7]}
11... cxd4 {[%clk 0:02:15.8]} 12. Nxd4 {[%clk 0:02:35.7]} 12... Nxd4 {[%clk
0:02:15.7]} 13. Bxa8 {[%clk 0:02:36.6]} 13... Ndf5 {[%clk 0:02:15.6]} 14. Bf2
{[%clk 0:02:34.5]} 14... Nd5 {[%clk 0:02:15.2]} 15. Qb3 {[%clk 0:02:07.5]} 15...
Ba6 {[%clk 0:01:37.6]} 16. Bc6 {[%clk 0:01:52.9]} 16... Nde3 {[%clk 0:01:36.1]}
17. Re1 {[%clk 0:01:51.6]} 17... Nd4 {[%clk 0:01:32.8]} 18. Qa4 {[%clk
0:01:48.8]} 18... Nxc6 {[%clk 0:01:11]} 19. Bxe3 {[%clk 0:00:37.7]} 19... Bb7
{[%clk 0:01:11]} 20. Nc3 {[%clk 0:00:37.4]} 20... Qxd3 {[%clk 0:01:09.9]} 21.
Rad1 {[%clk 0:00:35]} 21... Qf5 {[%clk 0:01:09.7]} 22. Ne4 {[%clk 0:00:19]}
22... Nxe5 {[%clk 0:01:05.6]} 23. fxe5 {[%clk 0:00:14.9]} 23... Bxe4 {[%clk
0:01:01.3]} 24. Bf4 {[%clk 0:00:11.7]} 24... g5 {[%clk 0:00:54.3]} 25. Qxe4
{[%clk 0:00:11]} 25... Qxe4 {[%clk 0:00:50.4]} 26. Rxe4 {[%clk 0:00:11.9]} 26...
gxf4 {[%clk 0:00:50.9]} 27. gxf4 {[%clk 0:00:12.7]} 27... Rc8 {[%clk 0:00:50.4]}
28. Red4 {[%clk 0:00:12.6]} 28... Rc2 {[%clk 0:00:50.3]} 29. R4d2 {[%clk
0:00:12.7]} 29... Rc4 {[%clk 0:00:49.9]} 30. Rd8+ {[%clk 0:00:10.6]} 30... Bf8
{[%clk 0:00:49.8]} 31. R1d4 {[%clk 0:00:11]} 31... Rc2 {[%clk 0:00:49.7]} 32.
Rd2 {[%clk 0:00:11]} 32... Rc4 {[%clk 0:00:48.3]} 33. Rg2+ {[%clk 0:00:10.8]}
1-0

[Event "*** Titled Tuesday Blitz"]
[Site "Chess.com"]
[Date "2020.04.14"]
[Round "8"]
[White "plumalka"]
[Black "StoreySniper"]
[Result "1-0"]
[WhiteElo "2391"]
[BlackElo "2507"]
[TimeControl "180+1"]
[EndTime "11:29:18 PDT"]
[Termination "plumalka won on time"]

1. e4 {[%clk 0:03:00.9]} 1... g6 {[%clk 0:02:59.7]} 2. d4 {[%clk 0:02:59.5]}
2... Bg7 {[%clk 0:02:58.9]} 3. Nc3 {[%clk 0:02:59.8]} 3... c5 {[%clk 0:02:59]}
4. dxc5 {[%clk 0:02:56.6]} 4... Bxc3+ {[%clk 0:02:58.3]} 5. bxc3 {[%clk
0:02:54.5]} 5... Nf6 {[%clk 0:02:59.2]} 6. Bd3 {[%clk 0:02:49.3]} 6... Qa5
{[%clk 0:02:58.6]} 7. Ne2 {[%clk 0:02:45.1]} 7... Qxc5 {[%clk 0:02:57.5]} 8. O-O
{[%clk 0:02:41.7]} 8... d6 {[%clk 0:02:56.2]} 9. Be3 {[%clk 0:02:38.4]} 9... Qc7
{[%clk 0:02:53.4]} 10. h3 {[%clk 0:02:37.6]} 10... Nbd7 {[%clk 0:02:53.4]} 11.
f4 {[%clk 0:02:37.1]} 11... Nc5 {[%clk 0:02:49.8]} 12. Ng3 {[%clk 0:02:36.4]}
12... h5 {[%clk 0:02:41.1]} 13. Qf3 {[%clk 0:02:35.1]} 13... h4 {[%clk
0:02:27.4]} 14. Ne2 {[%clk 0:02:34.8]} 14... b6 {[%clk 0:02:11.5]} 15. Bd4
{[%clk 0:02:27.2]} 15... Bb7 {[%clk 0:02:06]} 16. Bxf6 {[%clk 0:02:08.8]} 16...
exf6 {[%clk 0:02:05.4]} 17. Qe3 {[%clk 0:02:07.8]} 17... O-O-O {[%clk 0:01:49]}
18. c4 {[%clk 0:02:07.9]} 18... Rde8 {[%clk 0:01:38]} 19. Nc3 {[%clk 0:02:05.4]}
19... f5 {[%clk 0:01:34]} 20. Qd4 {[%clk 0:01:55.8]} 20... fxe4 {[%clk
0:01:19.7]} 21. Nb5 {[%clk 0:01:54.7]} 21... Ne6 {[%clk 0:01:07.9]} 22. Nxc7
{[%clk 0:01:31.4]} 22... Nxd4 {[%clk 0:01:06.6]} 23. Nxe8 {[%clk 0:01:30.4]}
23... Rxe8 {[%clk 0:01:07]} 24. c3 {[%clk 0:01:30.4]} 24... Nf5 {[%clk 0:00:50]}
25. Be2 {[%clk 0:01:28.3]} 25... Ng3 {[%clk 0:00:25.1]} 26. Rfe1 {[%clk
0:01:27.5]} 26... f5 {[%clk 0:00:21.8]} 27. a4 {[%clk 0:01:25.4]} 27... Kc7
{[%clk 0:00:19.7]} 28. a5 {[%clk 0:01:24.8]} 28... Rc8 {[%clk 0:00:13.8]} 29.
Bd1 {[%clk 0:01:21.9]} 29... Kb8 {[%clk 0:00:12.2]} 30. Bb3 {[%clk 0:01:21.4]}
30... d5 {[%clk 0:00:09.2]} 31. axb6 {[%clk 0:01:19.8]} 31... axb6 {[%clk
0:00:08.6]} 32. Ra4 {[%clk 0:01:16.5]} 32... dxc4 {[%clk 0:00:05.5]} 33. Rxc4
{[%clk 0:01:14]} 33... Rd8 {[%clk 0:00:05.3]} 34. Rd4 {[%clk 0:01:12.8]} 34...
Rc8 {[%clk 0:00:05.2]} 35. c4 {[%clk 0:01:09.7]} 35... Ba6 {[%clk 0:00:02.9]}
36. Kf2 {[%clk 0:01:09.3]} 36... Kb7 {[%clk 0:00:02.7]} 37. Red1 {[%clk
0:01:07.7]} 37... Nh5 {[%clk 0:00:02.1]} 38. Rd7+ {[%clk 0:01:07.4]} 38... Rc7
{[%clk 0:00:02.5]} 39. R7d6 {[%clk 0:01:06.6]} 39... Nxf4 {[%clk 0:00:01.8]} 40.
Rf6 {[%clk 0:01:02.4]} 40... Nd3+ {[%clk 0:00:01.4]} 41. Ke3 {[%clk 0:01:02.4]}
41... Nc5 {[%clk 0:00:01.5]} 42. Ba2 {[%clk 0:01:01.9]} 1-0

[Event "*** Titled Tuesday Blitz"]
[Site "Chess.com"]
[Date "2020.04.14"]
[Round "8"]
[White "atalz0"]
[Black "Harut-1998"]
[Result "0-1"]
[WhiteElo "2407"]
[BlackElo "2587"]
[TimeControl "180+1"]
[EndTime "11:29:19 PDT"]
[Termination "Harut-1998 won by resignation"]

1. d4 {[%clk 0:03:00.9]} 1... d5 {[%clk 0:02:53.3]} 2. c4 {[%clk 0:03:00.7]}
2... e6 {[%clk 0:02:53.5]} 3. Nc3 {[%clk 0:03:00.5]} 3... Bb4 {[%clk 0:02:52.8]}
4. cxd5 {[%clk 0:03:00.3]} 4... exd5 {[%clk 0:02:51.4]} 5. Bf4 {[%clk
0:03:00.8]} 5... Nf6 {[%clk 0:02:44.9]} 6. e3 {[%clk 0:03:00.8]} 6... O-O {[%clk
0:02:42.6]} 7. Bd3 {[%clk 0:03:00.1]} 7... c5 {[%clk 0:02:39.2]} 8. dxc5 {[%clk
0:02:48]} 8... Nbd7 {[%clk 0:02:33.9]} 9. Ne2 {[%clk 0:02:45]} 9... Nxc5 {[%clk
0:02:29.4]} 10. Bc2 {[%clk 0:02:44.5]} 10... b6 {[%clk 0:02:19.2]} 11. a3 {[%clk
0:02:31.3]} 11... Bxc3+ {[%clk 0:02:17.6]} 12. Nxc3 {[%clk 0:02:32.2]} 12... Ba6
{[%clk 0:02:11]} 13. Be5 {[%clk 0:02:27.3]} 13... Rc8 {[%clk 0:02:03]} 14. f3
{[%clk 0:01:55.8]} 14... Re8 {[%clk 0:01:57.6]} 15. Bd4 {[%clk 0:01:54]} 15...
Ne6 {[%clk 0:01:48]} 16. Kf2 {[%clk 0:01:50.7]} 16... Nxd4 {[%clk 0:01:41.8]}
17. Qxd4 {[%clk 0:01:51.6]} 17... Rc4 {[%clk 0:01:30.7]} 18. Qd3 {[%clk
0:01:32.9]} 18... d4 {[%clk 0:01:22.6]} 19. exd4 {[%clk 0:01:09.7]} 19... Rxd4
{[%clk 0:01:14.1]} 20. Qxa6 {[%clk 0:01:08.7]} 20... Rd2+ {[%clk 0:01:12.7]} 21.
Ne2 {[%clk 0:00:54.7]} 21... Qd4+ {[%clk 0:00:46]} 22. Kf1 {[%clk 0:00:53.8]}
22... Qxb2 {[%clk 0:00:38.2]} 23. Bxh7+ {[%clk 0:00:13.3]} 23... Kxh7 {[%clk
0:00:31.9]} 24. Re1 {[%clk 0:00:14.2]} 24... b5 {[%clk 0:00:19.2]} 25. Qc6
{[%clk 0:00:03.2]} 25... Rexe2 {[%clk 0:00:14.3]} 0-1

[Event "*** Titled Tuesday Blitz"]
[Site "Chess.com"]
[Date "2020.04.14"]
[Round "8"]
[White "BIG_Pirate"]
[Black "CastleOasisChess"]
[Result "0-1"]
[WhiteElo "2368"]
[BlackElo "2112"]
[TimeControl "180+1"]
[EndTime "11:29:21 PDT"]
[Termination "CastleOasisChess won by checkmate"]

1. Nf3 {[%clk 0:03:00.9]} 1... d5 {[%clk 0:02:59.5]} 2. c4 {[%clk 0:03:00.8]}
2... e6 {[%clk 0:02:59.2]} 3. g3 {[%clk 0:03:00.8]} 3... c6 {[%clk 0:02:58.3]}
4. Bg2 {[%clk 0:03:00.6]} 4... Bd6 {[%clk 0:02:59.2]} 5. O-O {[%clk 0:02:58.9]}
5... Nd7 {[%clk 0:02:59.3]} 6. d4 {[%clk 0:02:58.8]} 6... f5 {[%clk 0:02:58.7]}
7. b3 {[%clk 0:02:51.6]} 7... Ngf6 {[%clk 0:02:49.8]} 8. Ba3 {[%clk 0:02:50.8]}
8... Qe7 {[%clk 0:02:48.4]} 9. Bxd6 {[%clk 0:02:50]} 9... Qxd6 {[%clk
0:02:49.3]} 10. Nbd2 {[%clk 0:02:48.7]} 10... O-O {[%clk 0:02:37.1]} 11. Rc1
{[%clk 0:02:47.6]} 11... Ne4 {[%clk 0:02:36.4]} 12. Ne1 {[%clk 0:02:45.4]} 12...
b6 {[%clk 0:02:31.5]} 13. Ndf3 {[%clk 0:02:43]} 13... Bb7 {[%clk 0:02:28.7]} 14.
Nd3 {[%clk 0:02:42.5]} 14... c5 {[%clk 0:02:15.7]} 15. cxd5 {[%clk 0:02:37.6]}
15... exd5 {[%clk 0:02:15.9]} 16. e3 {[%clk 0:02:27.8]} 16... Rae8 {[%clk
0:02:04.8]} 17. Qc2 {[%clk 0:02:25.2]} 17... Ba6 {[%clk 0:02:01.1]} 18. Rfd1
{[%clk 0:02:24]} 18... Bxd3 {[%clk 0:01:59.1]} 19. Qxd3 {[%clk 0:02:21.7]} 19...
Ndf6 {[%clk 0:01:55.7]} 20. Nd2 {[%clk 0:01:51.5]} 20... Ng4 {[%clk 0:01:51.9]}
21. dxc5 {[%clk 0:01:36.8]} 21... Qh6 {[%clk 0:01:36.4]} 22. Qxd5+ {[%clk
0:01:31.4]} 22... Kh8 {[%clk 0:01:37]} 23. Nf1 {[%clk 0:00:50.8]} 23... Ngxf2
{[%clk 0:01:33.5]} 24. Rd4 {[%clk 0:00:31.1]} 24... bxc5 {[%clk 0:01:21]} 25.
Ra4 {[%clk 0:00:30.9]} 25... Rd8 {[%clk 0:01:02.5]} 26. Qb7 {[%clk 0:00:30.6]}
26... Nh3+ {[%clk 0:00:51.4]} 27. Bxh3 {[%clk 0:00:28.3]} 27... Qxh3 {[%clk
0:00:52.3]} 28. Rxa7 {[%clk 0:00:24.6]} 28... Qg4 {[%clk 0:00:48.7]} 29. Rc2
{[%clk 0:00:16]} 29... Rd1 {[%clk 0:00:44.6]} 30. Qe7 {[%clk 0:00:14.6]} 30...
Rxf1+ {[%clk 0:00:33.2]} 31. Kxf1 {[%clk 0:00:15.5]} 31... Qd1+ {[%clk
0:00:31.6]} 32. Kg2 {[%clk 0:00:16]} 32... Qxc2+ {[%clk 0:00:32.1]} 33. Kh3
{[%clk 0:00:16]} 33... Nf2+ {[%clk 0:00:28.9]} 34. Kg2 {[%clk 0:00:12.9]} 34...
Ng4+ {[%clk 0:00:27.1]} 35. Kf3 {[%clk 0:00:10.2]} 35... Qf2# {[%clk 0:00:25.5]}
0-1

[Event "*** Titled Tuesday Blitz"]
[Site "Chess.com"]
[Date "2020.04.14"]
[Round "8"]
[White "Gabix_94"]
[Black "EndgameGrinder"]
[Result "1-0"]
[WhiteElo "2867"]
[BlackElo "2699"]
[TimeControl "180+1"]
[EndTime "11:29:23 PDT"]
[Termination "Gabix_94 won by resignation"]

1. d4 {[%clk 0:03:00.6]} 1... d5 {[%clk 0:02:59.4]} 2. c4 {[%clk 0:03:00.8]}
2... c6 {[%clk 0:02:59.8]} 3. Nf3 {[%clk 0:02:59.3]} 3... Nf6 {[%clk 0:02:59.9]}
4. Nc3 {[%clk 0:02:58.7]} 4... e6 {[%clk 0:02:59.7]} 5. g3 {[%clk 0:02:57.5]}
5... dxc4 {[%clk 0:02:52.9]} 6. Bg2 {[%clk 0:02:57.5]} 6... b5 {[%clk
0:02:47.3]} 7. Ne5 {[%clk 0:02:57.3]} 7... Nd5 {[%clk 0:02:44.3]} 8. O-O {[%clk
0:02:42.7]} 8... Be7 {[%clk 0:02:43.6]} 9. e4 {[%clk 0:02:37.3]} 9... Nb6 {[%clk
0:02:24.6]} 10. a4 {[%clk 0:02:24.2]} 10... b4 {[%clk 0:02:23.2]} 11. Ne2 {[%clk
0:02:22.7]} 11... a5 {[%clk 0:02:20.4]} 12. Nf4 {[%clk 0:02:15.4]} 12... O-O
{[%clk 0:02:08.5]} 13. Be3 {[%clk 0:02:14.2]} 13... f6 {[%clk 0:02:01]} 14. Nf3
{[%clk 0:02:01.9]} 14... g5 {[%clk 0:01:40.4]} 15. Nh5 {[%clk 0:01:57]} 15...
Qe8 {[%clk 0:01:39]} 16. g4 {[%clk 0:01:54.6]} 16... e5 {[%clk 0:01:30.6]} 17.
dxe5 {[%clk 0:01:49.4]} 17... Bxg4 {[%clk 0:01:29.7]} 18. exf6 {[%clk
0:01:42.8]} 18... Bd8 {[%clk 0:01:01.5]} 19. Ng7 {[%clk 0:01:31.9]} 19... Qxe4
{[%clk 0:00:46.5]} 20. Nxg5 {[%clk 0:01:20.1]} 20... Qxg2+ {[%clk 0:00:36.9]}
21. Kxg2 {[%clk 0:01:20.6]} 21... Bxd1 {[%clk 0:00:37.6]} 22. Raxd1 {[%clk
0:01:21.2]} 22... Bxf6 {[%clk 0:00:36.6]} 23. N7e6 {[%clk 0:01:16.4]} 23... Bxg5
{[%clk 0:00:32.4]} 24. Nxf8 {[%clk 0:01:11.7]} 24... Bxe3 {[%clk 0:00:23.8]} 25.
fxe3 {[%clk 0:01:12.6]} 25... Na6 {[%clk 0:00:21.8]} 26. Rd4 {[%clk 0:01:08.3]}
26... Ra7 {[%clk 0:00:13.8]} 27. Ne6 {[%clk 0:01:01.5]} 27... h5 {[%clk
0:00:10.4]} 28. Rd8+ {[%clk 0:00:57.3]} 28... Kh7 {[%clk 0:00:10]} 29. Rf5
{[%clk 0:00:49]} 29... Nd5 {[%clk 0:00:09.5]} 30. Rxh5+ {[%clk 0:00:44.3]} 30...
Kg6 {[%clk 0:00:09.6]} 31. Rdh8 {[%clk 0:00:44.9]} 31... Nxe3+ {[%clk 0:00:09]}
32. Kf3 {[%clk 0:00:42.1]} 32... Nf5 {[%clk 0:00:09.9]} 33. Nf4+ {[%clk
0:00:35.8]} 33... Kf6 {[%clk 0:00:10]} 34. Rf8+ {[%clk 0:00:32.7]} 34... Rf7
{[%clk 0:00:04.4]} 35. Rxf7+ {[%clk 0:00:32.5]} 35... Kxf7 {[%clk 0:00:04.6]}
36. Rxf5+ {[%clk 0:00:33.2]} 1-0